[Event "Early-Titled-Tuesday-Blitz-February-20-2024"]
[Site "Chess.com"]
[Date "2024.02.20"]
[Round "4"]
[White "azikom"]
[Black "ZachHKL"]
[Result "1-0"]
[WhiteElo "2663"]
[BlackElo "2107"]
[TimeControl "180+1"]
[EndTime "8:40:04 PST"]
[Termination "azikom won by checkmate"]

1. e4 {[%clk 0:02:59.6]} 1... c5 {[%clk 0:02:58.8]} 2. Nc3 {[%clk 0:03:00.5]}
2... d6 {[%clk 0:02:57.9]} 3. g3 {[%clk 0:03:01]} 3... g6 {[%clk 0:02:58.1]} 4.
Bg2 {[%clk 0:03:01.1]} 4... Bg7 {[%clk 0:02:58.6]} 5. d3 {[%clk 0:03:01.8]} 5...
Nc6 {[%clk 0:02:58.3]} 6. h4 {[%clk 0:03:02.2]} 6... h5 {[%clk 0:02:57]} 7. Nh3
{[%clk 0:03:01.2]} 7... e5 {[%clk 0:02:51]} 8. Bg5 {[%clk 0:02:58.5]} 8... Bf6
{[%clk 0:02:50.4]} 9. Qd2 {[%clk 0:02:56.6]} 9... Bxg5 {[%clk 0:02:49.8]} 10.
Nxg5 {[%clk 0:02:56]} 10... Nge7 {[%clk 0:02:46.2]} 11. O-O-O {[%clk 0:02:55.1]}
11... f6 {[%clk 0:02:38.2]} 12. Nh3 {[%clk 0:02:54.3]} 12... Be6 {[%clk
0:02:35.1]} 13. Kb1 {[%clk 0:02:53.6]} 13... Qd7 {[%clk 0:02:34.1]} 14. f4
{[%clk 0:02:54.1]} 14... O-O-O {[%clk 0:02:33.7]} 15. Nf2 {[%clk 0:02:53.3]}
15... Rdf8 {[%clk 0:02:27]} 16. Rhf1 {[%clk 0:02:45.9]} 16... Nd4 {[%clk
0:02:25.2]} 17. Nd5 {[%clk 0:02:26.3]} 17... Nxd5 {[%clk 0:02:06.6]} 18. exd5
{[%clk 0:02:25.8]} 18... Bg4 {[%clk 0:02:06]} 19. Rde1 {[%clk 0:01:53.3]} 19...
Nf3 {[%clk 0:02:01]} 20. Bxf3 {[%clk 0:01:52.6]} 20... Bxf3 {[%clk 0:02:01.9]}
21. c4 {[%clk 0:01:51.2]} 21... Bg4 {[%clk 0:01:57.1]} 22. Ne4 {[%clk
0:01:47.2]} 22... Bf5 {[%clk 0:01:55.6]} 23. a3 {[%clk 0:01:44.4]} 23... Bxe4
{[%clk 0:01:55.5]} 24. Rxe4 {[%clk 0:01:45.3]} 24... a6 {[%clk 0:01:40.2]} 25.
Ka2 {[%clk 0:01:44.8]} 25... Re8 {[%clk 0:01:37.8]} 26. fxe5 {[%clk 0:01:38.5]}
26... fxe5 {[%clk 0:01:35.4]} 27. Qg5 {[%clk 0:01:38.9]} 27... Rhg8 {[%clk
0:01:29]} 28. Rf6 {[%clk 0:01:37.8]} 28... Qe7 {[%clk 0:01:27.2]} 29. Re3 {[%clk
0:01:20.8]} 29... Rg7 {[%clk 0:01:09.3]} 30. Ref3 {[%clk 0:01:12.3]} 30... Reg8
{[%clk 0:01:08.8]} 31. Re6 {[%clk 0:01:08.4]} 31... Qxg5 {[%clk 0:01:07.4]} 32.
hxg5 {[%clk 0:01:09.3]} 32... Rd7 {[%clk 0:00:55.1]} 33. Rff6 {[%clk 0:01:09.3]}
33... Kc7 {[%clk 0:00:53.3]} 34. b4 {[%clk 0:01:07.8]} 34... cxb4 {[%clk
0:00:50.6]} 35. axb4 {[%clk 0:01:07.7]} 35... Rh8 {[%clk 0:00:49.7]} 36. Rxg6
{[%clk 0:00:56.3]} 36... h4 {[%clk 0:00:49.9]} 37. gxh4 {[%clk 0:00:53]} 37...
Rxh4 {[%clk 0:00:49]} 38. Rh6 {[%clk 0:00:52.4]} 38... Rg4 {[%clk 0:00:46.1]}
39. g6 {[%clk 0:00:51]} 39... Rg3 {[%clk 0:00:46.1]} 40. Rh7 {[%clk 0:00:45.5]}
40... Rxd3 {[%clk 0:00:34.3]} 41. Ree7 {[%clk 0:00:39]} 41... Rxe7 {[%clk
0:00:31.1]} 42. Rxe7+ {[%clk 0:00:39.9]} 42... Kb6 {[%clk 0:00:30.8]} 43. Rd7
{[%clk 0:00:38.7]} 43... Rd4 {[%clk 0:00:26.4]} 44. Kb3 {[%clk 0:00:34.6]} 44...
Rg4 {[%clk 0:00:25.2]} 45. Rxd6+ {[%clk 0:00:34.2]} 45... Kc7 {[%clk 0:00:25.3]}
46. Re6 {[%clk 0:00:34.2]} 46... b5 {[%clk 0:00:22.8]} 47. c5 {[%clk 0:00:32.9]}
47... Rg3+ {[%clk 0:00:22.7]} 48. Kb2 {[%clk 0:00:32.7]} 48... Rg2+ {[%clk
0:00:22.7]} 49. Kc3 {[%clk 0:00:32.3]} 49... Rg3+ {[%clk 0:00:22.9]} 50. Kc2
{[%clk 0:00:32.3]} 50... Rg2+ {[%clk 0:00:22.4]} 51. Kd3 {[%clk 0:00:32.2]}
51... Rg3+ {[%clk 0:00:22.5]} 52. Ke4 {[%clk 0:00:25.8]} 52... Rg4+ {[%clk
0:00:20.5]} 53. Kf5 {[%clk 0:00:25.6]} 53... Rg1 {[%clk 0:00:18.8]} 54. Re7+
{[%clk 0:00:24.7]} 54... Kd8 {[%clk 0:00:18.5]} 55. d6 {[%clk 0:00:25.3]} 55...
Rf1+ {[%clk 0:00:18.6]} 56. Kxe5 {[%clk 0:00:24.6]} 56... Rg1 {[%clk 0:00:19.5]}
57. g7 {[%clk 0:00:24.3]} 57... a5 {[%clk 0:00:18.3]} 58. bxa5 {[%clk 0:00:24]}
58... b4 {[%clk 0:00:17.9]} 59. a6 {[%clk 0:00:24]} 59... b3 {[%clk 0:00:18]}
60. Rb7 {[%clk 0:00:24.1]} 60... Re1+ {[%clk 0:00:17.9]} 61. Kd5 {[%clk
0:00:24]} 61... Rd1+ {[%clk 0:00:18.1]} 62. Kc6 {[%clk 0:00:23.8]} 62... Rg1
{[%clk 0:00:18.7]} 63. Rb8# {[%clk 0:00:23.5]} 1-0

[Event "Early-Titled-Tuesday-Blitz-February-20-2024"]
[Site "Chess.com"]
[Date "2024.02.20"]
[Round "4"]
[White "ImportedItalianMaple"]
[Black "fugadelafuga"]
[Result "1-0"]
[WhiteElo "2529"]
[BlackElo "2342"]
[TimeControl "180+1"]
[EndTime "8:40:06 PST"]
[Termination "ImportedItalianMaple won by resignation"]

1. Nf3 {[%clk 0:03:00.9]} 1... Nf6 {[%clk 0:02:57.2]} 2. g3 {[%clk 0:03:00.1]}
2... g6 {[%clk 0:02:56.3]} 3. Bg2 {[%clk 0:02:59.9]} 3... Bg7 {[%clk 0:02:55.8]}
4. O-O {[%clk 0:03:00.4]} 4... O-O {[%clk 0:02:54.3]} 5. d4 {[%clk 0:03:01]}
5... c6 {[%clk 0:02:47.9]} 6. c4 {[%clk 0:02:59.7]} 6... d5 {[%clk 0:02:44.9]}
7. Ne5 {[%clk 0:02:59.6]} 7... Nbd7 {[%clk 0:02:33.4]} 8. Nc3 {[%clk 0:02:58.3]}
8... dxc4 {[%clk 0:02:27.5]} 9. Nxc4 {[%clk 0:02:57.2]} 9... Nb6 {[%clk
0:02:25.2]} 10. Ne5 {[%clk 0:02:57.1]} 10... Nbd5 {[%clk 0:02:21.8]} 11. e4
{[%clk 0:02:53.3]} 11... Nxc3 {[%clk 0:02:19]} 12. bxc3 {[%clk 0:02:53.9]} 12...
Nd7 {[%clk 0:02:14.1]} 13. Nf3 {[%clk 0:02:44.7]} 13... b6 {[%clk 0:02:08.3]}
14. Qe2 {[%clk 0:02:39.8]} 14... Bb7 {[%clk 0:02:05.9]} 15. Rd1 {[%clk 0:02:39]}
15... c5 {[%clk 0:01:58.1]} 16. Bg5 {[%clk 0:02:22.5]} 16... h6 {[%clk
0:01:52.9]} 17. Bd2 {[%clk 0:02:16.1]} 17... Rc8 {[%clk 0:01:48.9]} 18. Rac1
{[%clk 0:02:09.2]} 18... Qc7 {[%clk 0:01:44.9]} 19. d5 {[%clk 0:02:05.5]} 19...
e6 {[%clk 0:01:38.2]} 20. c4 {[%clk 0:02:02.3]} 20... exd5 {[%clk 0:01:32.3]}
21. exd5 {[%clk 0:02:00.7]} 21... Rfe8 {[%clk 0:01:33.2]} 22. Qd3 {[%clk
0:02:00]} 22... Rcd8 {[%clk 0:01:22.9]} 23. Bf4 {[%clk 0:01:54.6]} 23... Qc8
{[%clk 0:01:22.9]} 24. Re1 {[%clk 0:01:53.9]} 24... Rxe1+ {[%clk 0:01:18.9]} 25.
Rxe1 {[%clk 0:01:54.4]} 25... g5 {[%clk 0:01:13.1]} 26. Bd2 {[%clk 0:01:48.1]}
26... b5 {[%clk 0:01:10.2]} 27. cxb5 {[%clk 0:01:35.5]} 27... c4 {[%clk
0:01:09.9]} 28. Qf5 {[%clk 0:01:35.7]} 28... c3 {[%clk 0:01:06.1]} 29. Bxg5
{[%clk 0:01:15]} 29... hxg5 {[%clk 0:01:02]} 30. Nxg5 {[%clk 0:01:15.9]} 30...
Nf6 {[%clk 0:00:57.4]} 31. Qc2 {[%clk 0:01:05.9]} 31... Bxd5 {[%clk 0:00:56.8]}
32. Re7 {[%clk 0:00:46]} 32... Qc5 {[%clk 0:00:34.3]} 33. Bxd5 {[%clk
0:00:29.8]} 33... Qxe7 {[%clk 0:00:21.1]} 34. Bxf7+ {[%clk 0:00:29.3]} 34... Kf8
{[%clk 0:00:20.3]} 35. Bb3 {[%clk 0:00:29.5]} 35... Qe1+ {[%clk 0:00:07.9]} 36.
Kg2 {[%clk 0:00:29]} 36... Rd6 {[%clk 0:00:08.1]} 37. Qf5 {[%clk 0:00:17.7]}
37... Qe8 {[%clk 0:00:06.3]} 38. Nh7+ {[%clk 0:00:13.6]} 38... Ke7 {[%clk
0:00:05.3]} 39. Qe5+ {[%clk 0:00:14]} 39... Kd8 {[%clk 0:00:05.3]} 40. Qxd6+
{[%clk 0:00:13.7]} 40... Qd7 {[%clk 0:00:06.2]} 41. Qxd7+ {[%clk 0:00:13.5]}
41... Nxd7 {[%clk 0:00:07.1]} 42. Ng5 {[%clk 0:00:13.6]} 42... Kc7 {[%clk
0:00:06.3]} 43. Ne4 {[%clk 0:00:13.9]} 43... Kb6 {[%clk 0:00:06.4]} 44. a4
{[%clk 0:00:13.8]} 44... Ka5 {[%clk 0:00:06.6]} 45. h4 {[%clk 0:00:13.7]} 45...
Kb4 {[%clk 0:00:06.9]} 46. Bc2 {[%clk 0:00:14.2]} 46... Nc5 {[%clk 0:00:06.7]}
47. Nxc5 {[%clk 0:00:14.2]} 47... Kxc5 {[%clk 0:00:07.6]} 48. g4 {[%clk
0:00:14.5]} 48... Kb4 {[%clk 0:00:08.1]} 49. h5 {[%clk 0:00:14.9]} 49... Bh6
{[%clk 0:00:06]} 50. Kg3 {[%clk 0:00:15.2]} 50... Ka3 {[%clk 0:00:06.3]} 51. f4
{[%clk 0:00:15.8]} 51... Kb2 {[%clk 0:00:07.2]} 52. Bf5 {[%clk 0:00:15.8]} 52...
c2 {[%clk 0:00:06]} 53. Bxc2 {[%clk 0:00:16.4]} 53... Kxc2 {[%clk 0:00:06.9]}
54. g5 {[%clk 0:00:17.1]} 54... Bf8 {[%clk 0:00:07.2]} 55. h6 {[%clk 0:00:17.7]}
55... Kd3 {[%clk 0:00:07.8]} 56. h7 {[%clk 0:00:17.6]} 56... Bg7 {[%clk
0:00:08]} 57. f5 {[%clk 0:00:18]} 57... Ke4 {[%clk 0:00:05.8]} 58. f6 {[%clk
0:00:18.6]} 58... Bh8 {[%clk 0:00:06]} 59. f7 {[%clk 0:00:19.1]} 59... Bg7
{[%clk 0:00:05.8]} 60. f8=Q {[%clk 0:00:19.7]} 60... Bxf8 {[%clk 0:00:06.3]} 61.
h8=Q {[%clk 0:00:20.2]} 61... Bd6+ {[%clk 0:00:07.1]} 62. Kg4 {[%clk 0:00:20.7]}
62... Be5 {[%clk 0:00:06.4]} 63. Qe8 {[%clk 0:00:21.2]} 1-0

[Event "Early-Titled-Tuesday-Blitz-February-20-2024"]
[Site "Chess.com"]
[Date "2024.02.20"]
[Round "4"]
[White "WiseKing_08"]
[Black "BozeKat"]
[Result "1-0"]
[WhiteElo "2441"]
[BlackElo "2128"]
[TimeControl "180+1"]
[EndTime "8:40:07 PST"]
[Termination "WiseKing_08 won by resignation"]

1. e4 {[%clk 0:02:57.4]} 1... c6 {[%clk 0:03:00.1]} 2. Nf3 {[%clk 0:02:56.9]}
2... d5 {[%clk 0:03:00.4]} 3. d3 {[%clk 0:02:55.8]} 3... Qc7 {[%clk 0:02:53.8]}
4. Nc3 {[%clk 0:02:52]} 4... dxe4 {[%clk 0:02:39.7]} 5. dxe4 {[%clk 0:02:48.4]}
5... e5 {[%clk 0:02:32.3]} 6. Bc4 {[%clk 0:02:48.5]} 6... Be6 {[%clk 0:02:15.6]}
7. Bxe6 {[%clk 0:02:47.1]} 7... fxe6 {[%clk 0:02:16.5]} 8. O-O {[%clk
0:02:47.3]} 8... Nf6 {[%clk 0:02:16.2]} 9. h3 {[%clk 0:02:32.4]} 9... h6 {[%clk
0:02:15.4]} 10. Be3 {[%clk 0:02:26.8]} 10... Bb4 {[%clk 0:02:13.8]} 11. Qd3
{[%clk 0:02:22.4]} 11... Nbd7 {[%clk 0:02:02.8]} 12. Nd2 {[%clk 0:02:03.7]}
12... O-O-O {[%clk 0:01:58.1]} 13. Qc4 {[%clk 0:01:58.5]} 13... Bxc3 {[%clk
0:01:37.5]} 14. Qxc3 {[%clk 0:01:59.4]} 14... Nb6 {[%clk 0:01:28.2]} 15. f3
{[%clk 0:01:50.4]} 15... g5 {[%clk 0:01:20.1]} 16. a4 {[%clk 0:01:34.7]} 16...
Kb8 {[%clk 0:01:14.9]} 17. a5 {[%clk 0:01:34.2]} 17... Nbd7 {[%clk 0:01:13.3]}
18. Nc4 {[%clk 0:01:31.8]} 18... Rhg8 {[%clk 0:01:03]} 19. Rad1 {[%clk
0:00:52.1]} 19... h5 {[%clk 0:01:00.4]} 20. Rd6 {[%clk 0:00:42.7]} 20... g4
{[%clk 0:00:58.6]} 21. hxg4 {[%clk 0:00:28.3]} 21... hxg4 {[%clk 0:00:58.8]} 22.
Rxe6 {[%clk 0:00:27.9]} 22... gxf3 {[%clk 0:00:56.4]} 23. Rxf3 {[%clk
0:00:24.9]} 23... Nxe4 {[%clk 0:00:56]} 24. Qb4 {[%clk 0:00:20.7]} 24... Ng5
{[%clk 0:00:34.3]} 25. Bxg5 {[%clk 0:00:19.6]} 25... Rxg5 {[%clk 0:00:35.2]} 26.
Rd3 {[%clk 0:00:11.5]} 26... Rdg8 {[%clk 0:00:28.5]} 27. Rd2 {[%clk 0:00:08.3]}
27... R5g7 {[%clk 0:00:16.2]} 28. Qd6 {[%clk 0:00:07.5]} 28... Qxd6 {[%clk
0:00:13.5]} 29. Rexd6 {[%clk 0:00:06.4]} 29... Kc7 {[%clk 0:00:11.7]} 30. b4
{[%clk 0:00:05.1]} 30... b6 {[%clk 0:00:08.6]} 31. axb6+ {[%clk 0:00:05.3]}
31... axb6 {[%clk 0:00:09.5]} 32. Re6 {[%clk 0:00:04.7]} 32... b5 {[%clk
0:00:09.2]} 33. Nxe5 {[%clk 0:00:04.7]} 33... Nxe5 {[%clk 0:00:09.1]} 34. Rxe5
{[%clk 0:00:05.6]} 34... Rd8 {[%clk 0:00:06.1]} 35. Rxd8 {[%clk 0:00:05.3]}
35... Kxd8 {[%clk 0:00:07]} 36. c3 {[%clk 0:00:03]} 36... Rg3 {[%clk 0:00:06.5]}
37. Rc5 {[%clk 0:00:03.4]} 37... Kc7 {[%clk 0:00:06.6]} 38. Kf2 {[%clk
0:00:04.3]} 38... Rg6 {[%clk 0:00:05.7]} 39. Kf3 {[%clk 0:00:04.2]} 39... Kd6
{[%clk 0:00:06.1]} 40. g4 {[%clk 0:00:04]} 40... Rg8 {[%clk 0:00:05.5]} 41. g5
{[%clk 0:00:02.9]} 41... Rf8+ {[%clk 0:00:05.7]} 42. Kg4 {[%clk 0:00:03.7]}
42... Rf1 {[%clk 0:00:05.6]} 43. g6 {[%clk 0:00:04.1]} 43... Rg1+ {[%clk
0:00:05.9]} 44. Kh5 {[%clk 0:00:04.8]} 44... Rh1+ {[%clk 0:00:06.1]} 45. Kg5
{[%clk 0:00:05.6]} 45... Rg1+ {[%clk 0:00:06.7]} 46. Kh6 {[%clk 0:00:06.4]}
46... Rh1+ {[%clk 0:00:07.1]} 47. Kg7 {[%clk 0:00:07.2]} 47... Rg1 {[%clk
0:00:07]} 48. Kh7 {[%clk 0:00:07.6]} 48... Rh1+ {[%clk 0:00:07.2]} 49. Kg8
{[%clk 0:00:08.4]} 49... Rg1 {[%clk 0:00:07.6]} 50. g7 {[%clk 0:00:09.2]} 50...
Rg4 {[%clk 0:00:07.2]} 51. Kh7 {[%clk 0:00:06.6]} 51... Rh4+ {[%clk 0:00:07.3]}
52. Kg6 {[%clk 0:00:07.3]} 52... Rh1 {[%clk 0:00:03.8]} 53. g8=Q {[%clk
0:00:06.9]} 53... Rg1+ {[%clk 0:00:04.3]} 54. Rg5 {[%clk 0:00:07.6]} 1-0

[Event "Early-Titled-Tuesday-Blitz-February-20-2024"]
[Site "Chess.com"]
[Date "2024.02.20"]
[Round "4"]
[White "Byniolus"]
[Black "HATilay"]
[Result "1/2-1/2"]
[WhiteElo "2828"]
[BlackElo "2639"]
[TimeControl "180+1"]
[EndTime "8:40:11 PST"]
[Termination "Game drawn by agreement"]

1. d4 {[%clk 0:03:00.9]} 1... Nf6 {[%clk 0:02:59.9]} 2. Nf3 {[%clk 0:03:00.8]}
2... d5 {[%clk 0:03:00]} 3. Bf4 {[%clk 0:03:01]} 3... e6 {[%clk 0:03:00.2]} 4.
Nbd2 {[%clk 0:03:01]} 4... c5 {[%clk 0:03:00.4]} 5. e3 {[%clk 0:03:00.2]} 5...
Nc6 {[%clk 0:03:00.7]} 6. c3 {[%clk 0:03:00.3]} 6... cxd4 {[%clk 0:03:00.8]} 7.
cxd4 {[%clk 0:03:00.3]} 7... Be7 {[%clk 0:02:58.7]} 8. Bd3 {[%clk 0:03:00.1]}
8... O-O {[%clk 0:02:59]} 9. h3 {[%clk 0:02:59.7]} 9... Bd7 {[%clk 0:02:57.3]}
10. O-O {[%clk 0:02:59.6]} 10... Rc8 {[%clk 0:02:57.7]} 11. a3 {[%clk
0:02:59.4]} 11... a5 {[%clk 0:02:56.6]} 12. Qb3 {[%clk 0:02:47.1]} 12... a4
{[%clk 0:02:38.1]} 13. Qxa4 {[%clk 0:02:06.2]} 13... Nb4 {[%clk 0:02:07]} 14.
Qb3 {[%clk 0:02:03.8]} 14... Nxd3 {[%clk 0:02:07.1]} 15. Qxd3 {[%clk 0:02:04.7]}
15... Qb6 {[%clk 0:02:07.4]} 16. Qb3 {[%clk 0:02:05]} 16... Qxb3 {[%clk
0:02:02.1]} 17. Nxb3 {[%clk 0:02:05.9]} 17... Rc2 {[%clk 0:02:02.3]} 18. Rfb1
{[%clk 0:01:57.1]} 18... Ne4 {[%clk 0:01:55.4]} 19. Ne1 {[%clk 0:01:36.5]} 19...
Rxf2 {[%clk 0:01:39.1]} 20. Nd3 {[%clk 0:01:22.1]} 20... Rc2 {[%clk 0:01:36.2]}
21. Rc1 {[%clk 0:01:16.3]} 21... Rfc8 {[%clk 0:01:32.6]} 22. Rxc2 {[%clk
0:01:16.8]} 22... Rxc2 {[%clk 0:01:32.2]} 23. Rc1 {[%clk 0:01:17.7]} 23... Rxc1+
{[%clk 0:01:32.4]} 24. Nbxc1 {[%clk 0:01:15.9]} 24... Kf8 {[%clk 0:01:21.1]} 25.
Kf1 {[%clk 0:01:01.9]} 25... g5 {[%clk 0:01:20.6]} 26. Bb8 {[%clk 0:00:59.3]}
26... Bb5 {[%clk 0:01:17.7]} 27. Ke1 {[%clk 0:00:56.3]} 27... h5 {[%clk
0:01:12.4]} 28. Nf2 {[%clk 0:00:48.6]} 28... f5 {[%clk 0:01:02.9]} 29. Nxe4
{[%clk 0:00:36.1]} 29... dxe4 {[%clk 0:01:02.9]} 30. Ne2 {[%clk 0:00:34.8]}
30... h4 {[%clk 0:00:56.8]} 31. Nc3 {[%clk 0:00:29]} 31... Bc4 {[%clk
0:00:56.5]} 32. g3 {[%clk 0:00:20.5]} 32... hxg3 {[%clk 0:00:55.3]} 33. Bxg3
{[%clk 0:00:20]} 33... Kf7 {[%clk 0:00:54.3]} 34. Kd2 {[%clk 0:00:17.9]} 34...
Bf1 {[%clk 0:00:52.8]} 35. d5 {[%clk 0:00:15.5]} 35... Bxh3 {[%clk 0:00:41.1]}
36. dxe6+ {[%clk 0:00:16]} 36... Kxe6 {[%clk 0:00:41.2]} 37. Nb5 {[%clk
0:00:16.9]} 37... Bf6 {[%clk 0:00:36.2]} 38. b4 {[%clk 0:00:17.4]} 38... Be5
{[%clk 0:00:32.9]} 39. Nc7+ {[%clk 0:00:15.8]} 39... Bxc7 {[%clk 0:00:24.6]} 40.
Bxc7 {[%clk 0:00:16.7]} 40... Kd5 {[%clk 0:00:25.2]} 41. Kc3 {[%clk 0:00:14.6]}
41... Bf1 {[%clk 0:00:25.4]} 42. a4 {[%clk 0:00:14]} 42... Bd3 {[%clk
0:00:24.2]} 43. Bd8 {[%clk 0:00:11.4]} 43... g4 {[%clk 0:00:19.2]} 44. Bc7
{[%clk 0:00:10.8]} 44... Be2 {[%clk 0:00:19]} 45. Bf4 {[%clk 0:00:07.2]} 45...
Bd3 {[%clk 0:00:18.3]} 46. a5 {[%clk 0:00:06.4]} 46... Bb5 {[%clk 0:00:17.7]}
47. Kd2 {[%clk 0:00:04]} 47... Kc4 {[%clk 0:00:17.7]} 48. Bd6 {[%clk 0:00:04.4]}
48... g3 {[%clk 0:00:17.5]} 49. Bxg3 {[%clk 0:00:04.2]} 49... Kxb4 {[%clk
0:00:17.6]} 50. Bc7 {[%clk 0:00:05.1]} 50... Bd3 {[%clk 0:00:16.1]} 51. Ke1
{[%clk 0:00:04.6]} 51... Kc3 {[%clk 0:00:13.9]} 52. Kf2 {[%clk 0:00:04.1]} 52...
Kd2 {[%clk 0:00:13.8]} 53. Be5 {[%clk 0:00:04.3]} 53... Ba6 {[%clk 0:00:13.9]}
54. Bd6 {[%clk 0:00:04.7]} 54... Kd3 {[%clk 0:00:14.4]} 55. Bc7 {[%clk
0:00:05.1]} 55... Kc4 {[%clk 0:00:14]} 56. Kg3 {[%clk 0:00:05.1]} 56... Kd5
{[%clk 0:00:12.9]} 57. Kf4 {[%clk 0:00:05.1]} 57... Ke6 {[%clk 0:00:13.3]} 58.
Bb6 {[%clk 0:00:05.5]} 58... Bd3 {[%clk 0:00:13.4]} 59. Bd4 {[%clk 0:00:05.4]}
1/2-1/2

[Event "Early-Titled-Tuesday-Blitz-February-20-2024"]
[Site "Chess.com"]
[Date "2024.02.20"]
[Round "4"]
[White "lacafi"]
[Black "Mikhail_Golubev"]
[Result "0-1"]
[WhiteElo "2204"]
[BlackElo "2639"]
[TimeControl "180+1"]
[EndTime "8:40:12 PST"]
[Termination "Mikhail_Golubev won by checkmate"]

1. d4 {[%clk 0:02:54.8]} 1... Nf6 {[%clk 0:02:59]} 2. Nf3 {[%clk 0:02:54.5]}
2... d6 {[%clk 0:02:58.7]} 3. c4 {[%clk 0:02:54.3]} 3... g6 {[%clk 0:02:58.2]}
4. Nc3 {[%clk 0:02:54.8]} 4... Bg7 {[%clk 0:02:58.8]} 5. e4 {[%clk 0:02:55.4]}
5... O-O {[%clk 0:02:58.4]} 6. Be2 {[%clk 0:02:56.1]} 6... e5 {[%clk 0:02:58.1]}
7. dxe5 {[%clk 0:02:57]} 7... dxe5 {[%clk 0:02:57.6]} 8. O-O {[%clk 0:02:57.7]}
8... Nc6 {[%clk 0:02:54.1]} 9. Bg5 {[%clk 0:02:57]} 9... Qxd1 {[%clk 0:02:51.8]}
10. Rfxd1 {[%clk 0:02:56.6]} 10... Bg4 {[%clk 0:02:51.7]} 11. Nd5 {[%clk
0:02:19.3]} 11... Nxd5 {[%clk 0:02:49.4]} 12. cxd5 {[%clk 0:02:18]} 12... Bxf3
{[%clk 0:02:49.3]} 13. Bxf3 {[%clk 0:02:18]} 13... Nd4 {[%clk 0:02:47.5]} 14.
Rac1 {[%clk 0:02:13.6]} 14... c6 {[%clk 0:02:26.6]} 15. dxc6 {[%clk 0:01:24.1]}
15... bxc6 {[%clk 0:02:15]} 16. b3 {[%clk 0:01:22.6]} 16... a5 {[%clk
0:02:09.3]} 17. Rc4 {[%clk 0:01:22]} 17... a4 {[%clk 0:02:01.2]} 18. bxa4 {[%clk
0:01:18.1]} 18... Rfb8 {[%clk 0:01:59.8]} 19. Be3 {[%clk 0:01:13.3]} 19... Rb2
{[%clk 0:01:54.7]} 20. Rd2 {[%clk 0:00:39]} 20... Rb1+ {[%clk 0:01:45.7]} 21.
Bd1 {[%clk 0:00:38.5]} 21... Bf8 {[%clk 0:00:50.5]} 22. f3 {[%clk 0:00:22.4]}
22... Bb4 {[%clk 0:00:43.2]} 23. Rd3 {[%clk 0:00:22.5]} 23... Rxa4 {[%clk
0:00:40.2]} 24. Bxd4 {[%clk 0:00:10.2]} 24... exd4 {[%clk 0:00:39.8]} 25. Rxc6
{[%clk 0:00:10.7]} 25... Bc3 {[%clk 0:00:32]} 26. Kf2 {[%clk 0:00:08.3]} 26...
Rxa2+ {[%clk 0:00:30.4]} 27. Kg3 {[%clk 0:00:08.8]} 27... Rbb2 {[%clk
0:00:29.6]} 28. e5 {[%clk 0:00:05.4]} 28... Rxg2+ {[%clk 0:00:28.9]} 29. Kf4
{[%clk 0:00:06.2]} 29... Rad2 {[%clk 0:00:19.4]} 30. Rxd2 {[%clk 0:00:04.9]}
30... Rxd2 {[%clk 0:00:18.9]} 31. Bb3 {[%clk 0:00:05.7]} 31... Re2 {[%clk
0:00:16]} 32. Rc7 {[%clk 0:00:05.4]} 32... d3 {[%clk 0:00:15.9]} 33. Rxf7 {[%clk
0:00:03.8]} 33... Bxe5+ {[%clk 0:00:14.9]} 34. Kg4 {[%clk 0:00:03.3]} 34... Rg2+
{[%clk 0:00:14.5]} 35. Kh3 {[%clk 0:00:02.9]} 35... Rxh2+ {[%clk 0:00:14.4]} 36.
Kg4 {[%clk 0:00:03.6]} 36... Rg2+ {[%clk 0:00:14.3]} 37. Kh3 {[%clk 0:00:04.1]}
37... Rg3+ {[%clk 0:00:13.8]} 38. Kh4 {[%clk 0:00:04.7]} 38... Kh8 {[%clk
0:00:13.6]} 39. Rf8+ {[%clk 0:00:04.5]} 39... Kg7 {[%clk 0:00:13.4]} 40. Rd8
{[%clk 0:00:05]} 40... Rxf3 {[%clk 0:00:10]} 41. Bc4 {[%clk 0:00:05.5]} 41...
Bf6+ {[%clk 0:00:09.3]} 42. Kg4 {[%clk 0:00:05.5]} 42... Bxd8 {[%clk 0:00:08.9]}
43. Kxf3 {[%clk 0:00:05.2]} 43... d2 {[%clk 0:00:09]} 44. Ke2 {[%clk 0:00:05.7]}
44... Bg5 {[%clk 0:00:09]} 45. Bd3 {[%clk 0:00:05.1]} 45... h5 {[%clk
0:00:08.4]} 46. Be4 {[%clk 0:00:05.3]} 46... Kh6 {[%clk 0:00:08.8]} 47. Bf3
{[%clk 0:00:05.5]} 47... Bf4 {[%clk 0:00:08.9]} 48. Kf1 {[%clk 0:00:04.6]} 48...
g5 {[%clk 0:00:09]} 49. Kg2 {[%clk 0:00:05.2]} 49... g4 {[%clk 0:00:09.2]} 50.
Bd1 {[%clk 0:00:05.6]} 50... Kg5 {[%clk 0:00:09.3]} 51. Kh1 {[%clk 0:00:06.2]}
51... h4 {[%clk 0:00:09.5]} 52. Kg2 {[%clk 0:00:06.8]} 52... h3+ {[%clk
0:00:09.7]} 53. Kh1 {[%clk 0:00:07]} 53... g3 {[%clk 0:00:09.6]} 54. Kg1 {[%clk
0:00:07.6]} 54... Be3+ {[%clk 0:00:09.3]} 55. Kh1 {[%clk 0:00:08]} 55... g2+
{[%clk 0:00:09.5]} 56. Kh2 {[%clk 0:00:08.2]} 56... g1=Q+ {[%clk 0:00:09.3]} 57.
Kxh3 {[%clk 0:00:08.6]} 57... Qxd1 {[%clk 0:00:09.2]} 58. Kh2 {[%clk 0:00:08.3]}
58... Qe2+ {[%clk 0:00:08.1]} 59. Kh3 {[%clk 0:00:08.7]} 59... Qf3+ {[%clk
0:00:07.7]} 60. Kh2 {[%clk 0:00:09]} 60... Bf4+ {[%clk 0:00:07.8]} 61. Kg1
{[%clk 0:00:08.6]} 61... d1=R# {[%clk 0:00:07.3]} 0-1